Cogmind - Beta 16 @@@ ROGUE MODE // 2025.11.04 @ 11:08:56 Player: ChromeKnight Result: Destroyed by 4J-TT8(R) with Subdweller Laser Performance ------------- Evolutions (0) 0 Regions Visited (3) 600 Robots Destroyed (36) 180 Value Destroyed (890) 890 Prototype IDs (2) 40 Alien Tech Used (0) 0 Bonus (25) 25 TOTAL SCORE: 1735 Bonus ------- Follower Combat Kills 25 Cogmind --------- Core Integrity 0/250 Matter 228/300 Energy 100/100 System Corruption 0% Temperature Cool (6) Movement Core (550) Ox10 Location -10/Subcaves Parts ------- > --- POWER (1) -------- (None) > --- PROPULSION (2) --- (None) > --- UTILITY (2) ------ Large Storage Unit > --- WEAPON (2) ------- Grenade Launcher Subdweller Shrapnel Launcher > --- INVENTORY (15) --- Subdweller Power Source Subdweller Optics Terrain Scan Processor Weapon Shielding Subdweller Beam Cannon Assault Rifle Assault Rifle Assault Rifle Assault Rifle Light Assault Rifle Light Assault Rifle Light Assault Rifle Light Assault Rifle Subdweller Machine Gun Datajack Peak State ------------ > --- POWER ------------ Light Nuclear Core > --- PROPULSION ------- Light Treads Light Treads > --- UTILITY ---------- Large Storage Unit Structural Scanner > --- WEAPON ----------- Assault Rifle Grenade Launcher > --- INVENTORY -------- Subdweller Power Source Subdweller Optics Terrain Scan Processor Weapon Shielding Subdweller Laser Subdweller Beam Cannon Assault Rifle Assault Rifle Assault Rifle Light Assault Rifle Light Assault Rifle Light Assault Rifle Light Assault Rifle Subdweller Shrapnel Launcher Datajack [Rating: 11] Favorites ----------- Power Ion Engine Engine Ion Engine Power Core Light Nuclear Core Propulsion Light Treads Treads Light Treads Wheel Wheel Utility Large Storage Unit Device Structural Scanner Storage Large Storage Unit Protection Light Armor Plating Weapon Assault Rifle Ballistic Gun Assault Rifle Launcher Grenade Launcher Build | -11 -10 -10 -10 ------- Run | Yrd Mat Min Sub Slots Evolved . | . . . . Power . | . . . . Propulsion . | . . . . Utility . | . . . . Weapon . | . . . . Parts Attached 21 | 8 9 3 1 Power 2 | 1 . 1 . Engine 1 | 1 . . . Core 1 | . . 1 . Reactor . | . . . . Propulsion 4 | 3 . 1 . Treads 3 | 2 . 1 . Leg . | . . . . Wheel 1 | 1 . . . Hover . | . . . . Flight . | . . . . Utility 4 | 1 3 . . Device 1 | . 1 . . Storage 2 | 1 1 . . Processor . | . . . . Hackware . | . . . . Protection 1 | . 1 . . Artifact . | . . . . Weapon 11 | 3 6 1 1 Energy Gun . | . . . . Energy Cannon . | . . . . Ballistic Gun 9 | 3 5 1 . Ballistic Cannon . | . . . . Launcher 2 | . 1 . 1 Special Weapon . | . . . . Impact Weapon . | . . . . Slashing Weapon . | . . . . Piercing Weapon . | . . . . Special Melee Weapon . | . . . . Unidentified Prototypes . | . . . . Parts Lost 7 | . 1 2 4 Power 1 | . . . 1 Propulsion 3 | . . 1 2 Utility 2 | . 1 . 1 Weapon 1 | . . 1 . Highest Loss Streak 2 | . 1 1 2 To Critical Strikes . | . . . . Average Backups 12 | . 9 11 14 Power . | . . . . Propulsion . | . . . . Utility 2 | . 1 2 2 Weapon 8 | . 6 8 9 Tool/Special . | . . . . Unused Backups 20 | . 6 . 14 Power 1 | . . . 1 Propulsion 1 | . 1 . . Utility 5 | . 1 . 4 Weapon 12 | . 4 . 8 Tool/Special 1 | . . . 1 Average Slot Usage (%) 84 | . 96 100 70 Engine 6 | . 14 12 . Core 6 | . . 1 11 Treads 18 | . 28 28 9 Device 6 | . . 14 6 Storage 14 | . 14 14 14 Protection 3 | . 11 . . Ballistic Gun 18 | . 27 28 10 Launcher 9 | . . . 17 Peak Build Rating 11 | 6 8 10 11 Average Rating 8 | 4 7 8 8 On Entrance 6 | . 6 8 10 Avg Prop Armor Cover (%) . | . . . . Naked Turns . | . . . . Heaviest Build 36 | 13 32 30 36 Greatest Support 40 | 40 40 40 40 Greatest Overweight (x) 11 | 3 . . 11 Average Overweight (x) 1 | . . . 3 Largest Inventory Capacity 15 | 8 15 15 15 Average Capacity 13 | 7 10 15 15 Most Carried 15 | 1 15 13 15 Average Carried 12 | . 9 11 14 Final Capacity 15 | 8 15 15 15 Final Carried 15 | 1 13 11 15 Class Distribution -------------------- 100% | Mutant Dominant Class ---------------- Mutant | -10/Materials Mutant | -10/Mines Mutant | -10/Subcaves Resources | -11 -10 -10 -10 ----------- Run | Yrd Mat Min Sub Matter Collected 1037 | 187 420 164 266 Remotely . | . . . . Salvage Created 1026 | . 564 133 329 Parts 78 | . 54 4 20 Haulers Intercepted 1 | . 1 . . Recyclers Shooed 2 | . 2 . . Parts Field Recycled . | . . . . Retrieved Matter . | . . . . Parts Self-Destructed 2 | . . . 2 Prevented . | . . . . Parts Restored . | . . . . Kills | -11 -10 -10 -10 ------- Run | Yrd Mat Min Sub Combat Hostiles Destroyed 28 | . 15 3 10 Guns 17 | . 12 3 2 AOE 11 | . 3 . 8 Classes Destroyed 10 | . 8 . 2 Worker 1 | . 1 . . Builder 2 | . 2 . . Hauler 1 | . 1 . . Recycler 1 | . 1 . . Operator 2 | . 2 . . Watcher 1 | . 1 . . Swarmer 9 | . 9 . . Grunt 11 | . 6 3 2 Cobbler 1 | . . . 1 Subdweller 8 | . . . 8 Best Kill Streak 4 | . 4 2 2 Combat Bots Only 3 | . 3 2 2 Max Kills in Single Turn 4 | . 4 1 2 Gunslinging . | . . . . Exploded 3 | . 3 . 2 Melee . | . . . . Uniques/NPCs Destroyed . | . . . . Combat | -11 -10 -10 -10 -------- Run | Yrd Mat Min Sub Hostile Shots Fired 125 | . 70 29 26 Missed 33 | . 17 7 9 Hits 92 | . 53 22 17 Projectile 92 | . 53 22 17 AOE 1 | . . . 1 Damage Taken 1443 | . 500 319 624 Core 258 | . 54 43 161 Absorbed by Shields . | . . . . Core Remaining (%) 100 | 100 . . . Volleys Fired 111 | . 62 17 32 Largest 2 | . 2 2 2 Hottest 70 | . 50 40 70 Shots Fired 205 | . 124 33 48 Gun 182 | . 123 33 26 Cannon . | . . . . Launcher 23 | . 1 . 22 Special . | . . . . Kinetic 186 | . 123 33 30 Thermal . | . . . . Explosive 19 | . 1 . 18 Electromagnetic . | . . . . Robot Hit Streak 11 | . 11 10 11 Robot Miss Streak 8 | . 8 2 2 Penetration Max . | . . . . Secondary Targets 3 | . 3 . . Max Gunslinging Chain 1 | . 1 . . Shots Hit Robots 125 | . 68 26 31 Core Hits 59 | . 32 6 21 Critical Kills . | . . . . Critical Parts Destroyed . | . . . . Critical Strikes . | . . . . Melee Attacks . | . . . . Impact . | . . . . Slashing . | . . . . Piercing . | . . . . Sneak Attacks . | . . . . Combat Hostiles . | . . . . Follow-up Attacks . | . . . . Damage Inflicted 2390 | . 945 338 1107 Guns 1355 | . 793 338 224 Cannons . | . . . . Explosions 1035 | . 152 . 883 Melee . | . . . . Ramming . | . . . . Kinetic 1547 | . 793 338 416 Thermal . | . . . . Explosive 843 | . 152 . 691 Electromagnetic . | . . . . Impact . | . . . . Slashing . | . . . . Piercing . | . . . . Highest Corruption . | . . . . Average Corruption . | . . . . Corruption Purged . | . . . . Corruption Blocked . | . . . . Overload Shots . | . . . . Overflow Damage . | . . . . Projectiles . | . . . . Explosions . | . . . . Melee . | . . . . Knockbacks . | . . . . Impact . | . . . . Kinetic . | . . . . Secondary . | . . . . Self-Inflicted Damage 65 | . . . 65 Shots 5 | . . . 5 Rammed . | . . . . Targets Rammed . | . . . . Kicked . | . . . . Crushed . | . . . . Highest Temperature 24 | . 24 8 . Average Temperature 6 | . 7 2 . Received Heat Transfer 366 | . 156 183 27 Siege Activations . | . . . . Martial Activations . | . . . . Shielding Activations . | . . . . Robots Disrupted . | . . . . Combat Hostiles . | . . . . Robots Corrupted . | . . . . Combat Hostiles . | . . . . Parts Fried . | . . . . Impact Corruptions . | . . . . Robots Melted . | . . . . Combat Hostiles . | . . . . Parts Melted . | . . . . Heat Transferred . | . . . . Parts Sabotaged . | . . . . Parts Stolen . | . . . . Parts Stripped . | . . . . Power Chain Reactions . | . . . . Alert | -11 -10 -10 -10 ------- Run | Yrd Mat Min Sub Maximum Alert Level . | . . . . Low Security (%) 100 | 100 100 100 . Level 1 . | . . . . Level 2 . | . . . . Level 3 . | . . . . Level 4 . | . . . . Level 5 . | . . . . High Security . | . . . . Max Security . | . . . . Peak Influence 125 | . 125 50 . Initial 34 | . . 34 . Average 25 | . 43 4 . Influence Increases 598 | . 447 101 50 Destroy 0b10 Robot/C 420 | . 300 80 40 Destroy 0b10 Robot/NC 40 | . 40 . . Destroy Leader 84 | . 54 20 10 Allied During Kill 1 | . . 1 . Successful Hack 43 | . 43 . . Destroy Structure 10 | . 10 . . Influence Decreases 598 | . 358 190 50 Entered New Map 55 | . . 55 . Time Decay 500 | . 348 111 41 Lost Part 23 | . 10 4 9 Lost Ally 20 | . . 20 . Squads Dispatched 2 | . 2 . . Investigation 1 | . 1 . . Extermination . | . . . . Reinforcement 1 | . 1 . . Assault . | . . . . Garrison . | . . . . Intercept . | . . . . Searches Triggered . | . . . . Construction Impeded . | . . . . Haulers Reinforced . | . . . . Active Scanning Responses . | . . . . Cargo Convoy Interrupts . | . . . . Stealth | -11 -10 -10 -10 --------- Run | Yrd Mat Min Sub Distress Signals 1 | . 1 . . Communications Jammed . | . . . . Distress Signals . | . . . . Times Spotted 38 | . 23 3 12 Peak Tracking Total 5 | . 5 2 2 Tactical Retreats . | . . . . Traps | -11 -10 -10 -10 ------- Run | Yrd Mat Min Sub Traps Triggered 4 | . . . 4 Indirectly . | . . . . Trap Hack Attempts . | . . . . Triggered . | . . . . Disarmed . | . . . . Reprogrammed . | . . . . Reused . | . . . . Traps Extracted . | . . . . Installed . | . . . . Triggered . | . . . . Machines | -11 -10 -10 -10 ---------- Run | Yrd Mat Min Sub Machines Disabled . | . . . . Max in Single Turn . | . . . . Machines Repaired . | . . . . Machines Dismantled . | . . . . Machines Sabotaged . | . . . . Overloaded Fab Kills . | . . . . Hacking | -11 -10 -10 -10 --------- Run | Yrd Mat Min Sub Machines Accessed 7 | . 6 . 1 Terminals 6 | . 6 . . Fabricators . | . . . . Repair Stations . | . . . . Recycling Units . | . . . . Scanalyzers . | . . . . Garrison Access . | . . . . Total Hacks 20 | . 17 . 3 Successful 11 | . 8 . 3 Failed 9 | . 9 . . Catastrophic 1 | . 1 . . Database Lockouts . | . . . . Manual 9 | . 9 . . Terminals 17 | . 17 . . Fabricators . | . . . . Repair Stations . | . . . . Recycling Units . | . . . . Scanalyzers . | . . . . Garrison Access . | . . . . Terminal Hacks 10 | . 7 . 3 Record 3 | . . . 3 Robot Analysis 5 | . 5 . . Prototype ID Bank 1 | . 1 . . Registered Prototypes 1 | . 1 . . Fabricator Hacks . | . . . . Repair Station Hacks . | . . . . Recycling Unit Hacks . | . . . . Scanalyzer . | . . . . Garrison Access Hacks . | . . . . Unauthorized Hacks 1 | . 1 . . Terminals 1 | . 1 . . Operators 1 | . 1 . . Fabricators . | . . . . Repair Stations . | . . . . Recycling Units . | . . . . Scanalyzers . | . . . . Garrison Access . | . . . . Data Cores Recovered 1 | . 1 . . Used . | . . . . Hacking Detections 5 | . 5 . . Full Trace Events 1 | . 1 . . Feedback Events . | . . . . Feedback Blocked . | . . . . Robot Schematics Acquired . | . . . . Robots Built . | . . . . Authchips . | . . . . Time . | . . . . Total Robot Build Rating . | . . . . Part Schematics Acquired . | . . . . Parts Built . | . . . . Authchips . | . . . . Time . | . . . . Total Part Build Rating . | . . . . Part Studies Acquired . | . . . . Parts Repaired . | . . . . Time . | . . . . Parts Recycled . | . . . . Recycled Matter . | . . . . Retrieved Matter . | . . . . Retrieved Components . | . . . . Parts Scanalyzed . | . . . . Part Schematics Acquired . | . . . . Parts Damaged . | . . . . Bothacking | -11 -10 -10 -10 ------------ Run | Yrd Mat Min Sub Used RIF Installer . | . . . . Robots Hacked . | . . . . Non-combat . | . . . . Combat . | . . . . Robot Hacks Applied . | . . . . Relay Couplers Released . | . . . . Fabnet Peak Effective % . | . . . . Robots Rewired . | . . . . Allies Hacked . | . . . . Hacks Repelled . | . . . . Allies | -11 -10 -10 -10 -------- Run | Yrd Mat Min Sub Total Allies 3 | . . 3 . Largest Group 3 | . . 3 . Highest-Rated Group 40 | . . 40 . Highest-Rated Ally 16 | . . 16 . Total Orders . | . . . . Ally Attacks 8 | . . 8 . Total Damage 100 | . . 100 . Kills 1 | . . 1 . Allies Corrupted . | . . . . Allies Melted . | . . . . Intel | -11 -10 -10 -10 ------- Run | Yrd Mat Min Sub Active Infowar (turns) 2239 | . 1 1093 1145 Structural 2239 | . 1 1093 1145 Robot Analysis Total 5 | . 5 . . Derelict Logs Recovered 2 | . . 2 . Drone Launches . | . . . . Drone Recoveries . | . . . . Exploration | -11 -10 -10 -10 ------------- Run | Yrd Mat Min Sub Turns Passed 5101 | 81 1373 1093 2554 Spaces Moved 2037 | 43 669 555 770 Core 258 | 8 . . 250 Treads 1778 | 34 669 555 520 Legs . | . . . . Wheels 1 | 1 . . . Hover . | . . . . Flight . | . . . . Fastest Speed 50 | 50 160 160 160 Average Speed 217 | 159 160 160 312 Slowest Speed 600 | 200 160 160 600 Overloaded Moves . | . . . . Propulsion Burnouts . | . . . . Robots Hopped . | . . . . Potential Cave-ins . | . . . . Cave-ins Triggered . | . . . . Exploration Rate (%) 61 | 6 86 98 54 Regions Visited 3 Branch Regions 2 Pre-discovered Areas 1 | . . 1 . Known Exits Taken . | . . . . Unknown Exits Taken 3 | 1 1 1 . Scrap Searched 1 | . . 1 . Spaces Dug . | . . . . Terrain Destroyed 126 | . 10 . 116 Melee . | . . . . Projectile . | . . . . AOE 126 | . 10 . 116 Terrain Rammed . | . . . . Walls Destroyed . | . . . . Machines Disabled . | . . . . Actions | -11 -10 -10 -10 --------- Run | Yrd Mat Min Sub Total 2512 | 52 866 727 867 Wait 301 | . 96 152 53 Move 2034 | 42 668 554 770 Hop . | . . . . Pick Up 27 | 1 19 . 7 Fast Attach 8 | 7 1 . . Attach 3 | . 1 2 . Detach . | . . . . Swap 12 | 1 8 1 2 Drop 16 | 1 11 1 3 Fire 111 | . 62 17 32 Melee . | . . . . Ram . | . . . . Kick . | . . . . Crush . | . . . . Escape Stasis . | . . . . Rewire . | . . . . Trap . | . . . . Miscellaneous . | . . . . Route ------- -11/Scrapyard -10/Materials (discovered 4 exits: [*Mat x3] / [*Min]) -10/Mines (discovered 3 exits: [*Mat x2] / *Sub) -10/Subcaves History --------- Turn | Location | Event 22 | -11/Scrapyard | Discovered new exit (range 15) 82 | -11/Scrapyard | Entered Materials 118 | -10/Materials | Discovered new exit (range 16) 309 | -10/Materials | Build established: Mutant 386 | -10/Materials | Discovered new exit (range 6) 986 | -10/Materials | Discovered new exit (range 6) 1276 | -10/Materials | Discovered new exit (range 15) 1455 | -10/Materials | Entered Mines 1563 | -10/Mines | Discovered new exit (range 7) 1783 | -10/Mines | Learned Materials security intel 1860 | -10/Mines | Assisted by bots powering up and referring to "LRC-V3" 1927 | -10/Mines | Learned location of 1 exit from Materials 1960 | -10/Mines | Lost 3 allies 2036 | -10/Mines | Discovered new exit (range 7) 2038 | -10/Mines | Learned location of Storage (-7) 2079 | -10/Mines | Discovered new exit (range 7) 2548 | -10/Mines | Entered Subcaves 2848 | -10/Subcaves | Ambushed by Subdwellers from Twisted Machinery 3114 | -10/Subcaves | Core integrity fell below 50% 3231 | -10/Subcaves | Visited Clippyterm 3238 | -10/Subcaves | Learned Research security intel 3238 | -10/Subcaves | Learned 40 Factory zone layouts 4641 | -10/Subcaves | Core integrity fell below 20% 5102 | -10/Subcaves | Destroyed by 4J-TT8(R) with Subdweller Laser Last Messages --------------- 03927_ Acquired 33 matter. 04067_ Acquired 24 matter. 04323_ G-47 Trooper destroyed. 04323_ G-34 Mercenary destroyed. 04329_ Aluminum Leg fries itself beyond repair. 04368_ Acquired 36 matter. 04374_ Acquired 29 matter. 04625_ Lgt. Nuclear Core destroyed. 04637_ AS-2CB(R) destroyed. 04639_ Subatomizers dissect the Sub. Optics. 04640_ UC-9YG(R) destroyed. 04650_ Subatomizers dissect the Sub. Machine Gun. 04654_ Acquired 32 matter. 04661_ Subatomizers dissect the Sub. Machine Gun. 04745_ Subatomizers dissect the Sub. Machine Gun, destroying it. 04880_ Acquired 5 matter. 04891_ Acquired 12 matter. Map ----- +----------------------------------------------------+ | | | | | | | | | | | | | | | ?????????????????????????????????????????????????? | | ?????????????????????????????????????????????????? | | ?????????????????????????????????????????????????? | | ?????????????????????????????????????????????????? | | ?????????????????????????????????????????????????? | | ?????????????????????????????????????????????????? | | ?????????????????????????????????????????????????? | | ?????????????????????????????????????????????????? | | ?????????????????????????????????????????????????? | | ?????????????????????????????????????????????????? | | ?????????????????????????????????????????????????? | | ?????????????????????????????????????????????????? | | ?????????????????????????????????????????????????? | | ????????????????????????????????????????######???? | | ???????????????????#??????????????????### #???? | | ???????????????????#&????????####???### """""##??? | | ???????????????????# ##?###### ##?## #"" ""##?? | | ????????????????????" ?# # # ### "#?? | | ????????????????????## ##@ ## "### | | ???????????????????##" ##### " | | ???????????????????# R # # ####""" | | ???????????????????# ### ### ####"#"# | | ???????????????????##???# #?### ########## | | ????????????????????????# ##???## ##########" | | ???????????????????????## ###### " ##" | | ???????????????????????# "#?#" | | ??????????????????????# "### | | ??????????????????????## ##"###" " | | ???????????????????????## ##""###" " | | ????????????????????????#ss### " ## | | ???????????????????????? s #?# " ## | | ???????????????????????? ##?## """ | | ???????????????????????? ????###"#" % " | | ???????????????????????? ??????#### "" " % | | ???????????????????????? ?????????# """ " | | ???????????????????????????????????#####""" | | ???????????????????????????????????????####"### | | ??????????????????????????????????????????###??### | | ?????????????????????????????????????????????????? | | ?????????????????????????????????????????????????? | | ?????????????????????????????????????????????????? | | ?????????????????????????????????????????????????? | | ?????????????????????????????????????????????????? | +----------------------------------------------------+ Best States ------------- Heat Dissipation 25 Energy Generation 14 Energy Capacity 250 Matter Stores 300 Matter Capacity 300 Sight Range 16 Terrain Scan Density 10 Armor Coverage 150 Evasion (%) 40 Recoil Reduction 2 Item Schematics ----------------- None Robot Schematics ------------------ None Fabricated ------------ Nothing Repaired ---------- Nothing Studied --------- None Alien Tech Used ----------------- None Achievements -------------- None Challenges ------------ None Game ------ Seed DecoyNuclearExtractor Manual? 0 Play Time 00:16:18 Cumulative 503.8 hours Start 2025.11.04 @ 10:54:36 End 2025.11.04 @ 11:08:56 Sessions 1 Manual Loads 0 Difficulty Rogue Special Mode None Game No. 835 Rogue 680 Adventurer 148 Explorer 7 Win Type - Total 24 Types 19/1/3/1/0/0/0/0/0/0 Lore% 73 Gallery% 78 Achievement% 61 Wizard Run 0 Options --------- Layout 1 ASCII 0 Keyboard 0 Movement Numpad Keybinds 0 Fullscreen 2 Font 24/Smallcaps Map View 50x35 Zoom Use 0% Tactical HUD 1 Map Filters NONE Filters NONE Steam 1 RUN: a93ee830-9249-4cfd-a6d4-756d61547b45